bitfinex-derivatives/quotes_ETHF0:USTF0_20250309
["timestamp","ask_amount","ask_price","bid_price","bid_amount"]
[1741532994254,1.2336,2120.9,2120.4,4.15118]
[1741532994648,0.94333,2120.6,2120.4,4.15118]
[1741532994856,0.94334,2120.5,2120.4,3.2078]
[1741532995857,0.94333,2120.6,2120.4,4.15118]
[1741532996051,0.6281,2120.5,2120.4,4.15118]
[1741532996254,0.5956,2120.9,2120.4,3.2078]
[1741532996456,1.57144,2120.5,2120.4,3.2078]
[1741532997557,0.94338,2120.4,2120.3,0.0070865]
[1741532997860,1.56628,2120.4,2120.3,0.0070865]
[1741532999755,0.6229,2120.4,2119.9,0.6351]
[1741532999956,0.94356,2120.0,2119.9,0.6351]
[1741533000658,0.94356,2120.0,2119.8,44.0078]
[1741533000659,0.94361,2119.9,2119.8,3.2078]
[1741533000856,1.59011,2119.9,2119.8,3.2078]
[1741533003262,0.6465,2119.9,2119.8,3.2078]
[1741533003462,0.0070865,2120.1,2119.8,3.2078]
[1741533003655,0.9506265,2120.1,2119.8,3.2078]
[1741533003957,0.0070865,2120.1,2120.0,0.94356]
[1741533004262,0.0070865,2120.1,2119.9,0.6072]
[1741533004557,0.0070865,2120.1,2120.0,0.6062]
[1741533004758,0.0070865,2120.1,2120.0,41.4062]
[1741533004961,0.9506065,2120.1,2120.0,40.8]
[1741533005162,1.5977265,2120.1,2119.8,4.15142]
[1741533005464,0.0070865,2120.1,2120.0,0.94356]
[1741533006055,0.0070865,2120.1,2120.0,3.19956]
[1741533006362,0.0070865,2120.1,2120.0,2.256]
[1741533006755,0.9506065,2120.1,2120.0,2.256]
[1741533007562,0.9506065,2120.1,2120.0,43.056]
[1741533007964,0.94361,2119.9,2119.8,3.2078]
[1741533008362,0.6446,2120.0,2119.8,3.2078]
[1741533008558,0.0070865,2120.1,2119.8,3.2078]
[1741533008758,0.9506365,2120.1,2119.8,4.15144]
[1741533009366,0.9506365,2120.1,2119.9,0.94359]
[1741533009570,0.0070865,2120.1,2119.8,4.15143]
[1741533009866,0.0070865,2120.1,2119.9,0.94358]
[1741533010167,0.0070865,2120.1,2120.0,0.94356]
[1741533012865,0.6446,2120.4,2120.3,0.94343]
[1741533013175,1.55352,2120.6,2120.4,0.94337]
[1741533013365,1.55352,2120.6,2120.4,1.59277]
[1741533013564,1.55353,2120.6,2120.4,1.59277]
[1741533013969,0.94334,2120.5,2120.4,0.6494]
[1741533014171,1.55352,2120.6,2120.4,1.59277]
[1741533014473,1.55349,2120.6,2120.4,1.59275]
[1741533014772,0.6102,2120.6,2120.4,0.6494]
[1741533014967,0.94334,2120.5,2120.4,0.6494]
[1741533016367,1.55352,2120.6,2120.4,0.6494]
[1741533016572,1.55351,2120.6,2120.4,1.59278]
[1741533017175,0.6102,2120.6,2120.4,1.59278]
[1741533017674,1.5535,2120.6,2120.4,0.6494]
[1741533018167,1.55352,2120.6,2120.4,0.6494]
[1741533018377,0.94334,2120.5,2120.4,0.6494]
[1741533021369,0.6313,2120.2,2119.9,4.79387]
[1741533021576,0.6039,2120.4,2120.1,0.94348]
[1741533021577,1.5473,2120.4,2120.1,0.94348]
[1741533021775,1.5473,2120.4,2120.3,3.2078]
[1741533043281,0.94353,2120.1,2120.0,3.2078]
[1741533043481,2.98236,2120.3,2120.0,3.2078]
[1741533043687,0.94352,2120.1,2120.0,3.2078]
[1741533045685,0.94361,2119.9,2119.8,0.6332]
[1741533049391,0.94369,2119.7,2119.6,0.6373865]
[1741533049596,0.94369,2119.7,2119.6,0.0070865]
[1741533049898,0.94378,2119.5,2119.4,0.6303]
[1741533052091,3.2078,2119.5,2119.2,0.0070865]
[1741533052390,0.94387,2119.3,2119.2,0.0070865]
[1741533052897,1.59557,2119.3,2119.2,0.0070865]
[1741533056498,0.94387,2119.3,2119.2,0.0070865]
[1741533056795,0.94385,2119.4,2119.2,0.0070865]
[1741533057001,0.6302865,2119.7,2119.3,3.2078]
[1741533057203,0.94383,2119.4,2119.3,3.2078]
[1741533057499,0.94383,2119.4,2119.3,44.0078]
[1741533058993,0.94383,2119.4,2119.3,3.2078]
[1741533059393,0.94387,2119.3,2119.2,0.0070865]
[1741533059596,1.58507,2119.3,2119.2,0.0070865]
[1741533064202,0.94387,2119.3,2119.2,0.0070865]
[1741533066098,4.94387,2119.3,2119.2,0.0070865]
[1741533066299,4.94387,2119.3,2119.2,1.3e-05]
[1741533067300,0.94387,2119.3,2119.2,1.3e-05]
[1741533071002,4.94387,2119.3,2119.2,1.3e-05]
[1741533071406,0.94387,2119.3,2119.2,1.3e-05]
[1741533073804,0.94378,2119.5,2119.2,1.3e-05]
[1741533074107,0.94376,2119.6,2119.3,3.2078]
[1741533074406,0.94378,2119.5,2119.4,1.8899]
[1741533075205,0.94378,2119.5,2119.4,1.2517]
[1741533075502,0.94378,2119.5,2119.4,0.5979]
[1741533075816,0.94387,2119.3,2119.2,3.207813]
[1741533076001,0.94387,2119.3,2119.2,1.3e-05]
[1741533076614,1.54717,2119.3,2119.2,1.3e-05]
[1741533094420,5.54717,2119.3,2119.2,1.3e-05]
[1741533096118,0.94423,2118.5,2118.4,0.6232]
[1741533096415,4.15203,2118.5,2118.4,0.6232]
[1741533096811,5.42703,2118.5,2118.4,0.6232]
[1741533097717,4.4828,2118.5,2118.2,0.0070865]
[1741533097912,0.94432,2118.3,2118.2,0.0070865]
[1741533098820,0.94432,2118.3,2118.2,6.5e-06]
[1741533099516,4.94432,2118.3,2118.2,6.5e-06]
[1741533100117,7.92532,2118.3,2118.2,6.5e-06]
[1741533102515,10.17432,2118.3,2118.2,6.5e-06]
[1741533108325,6.17432,2118.3,2118.2,6.5e-06]
[1741533108726,3.92532,2118.3,2118.2,6.5e-06]
[1741533108929,3.19332,2118.3,2118.2,6.5e-06]
[1741533109330,3.19329,2118.4,2118.2,6.5e-06]
[1741533109630,0.94432,2118.3,2118.2,6.5e-06]
[1741533109832,0.94432,2118.3,2118.2,0.6564065]
[1741533111925,0.9445,2117.9,2117.8,0.6543]
[1741533112127,3.1925,2117.9,2117.8,0.6543]
[1741533116131,3.1925,2117.9,2117.8,1.2987]
[1741533118637,3.1925,2117.9,2117.8,0.6543]
[1741533119733,0.94454,2117.8,2117.7,0.6023]
[1741533119940,0.94454,2117.8,2117.7,1.2242]
[1741533122539,0.94454,2117.8,2117.7,0.6023]
[1741533123045,0.94459,2117.7,2117.6,0.0070865]
[1741533123235,4.80749,2117.7,2117.6,0.0070865]
[1741533123633,4.80749,2117.7,2117.6,6.5e-06]
[1741533123934,8.80749,2117.7,2117.6,6.5e-06]
[1741533124544,4.80749,2117.7,2117.6,6.5e-06]
[1741533124739,4.15239,2117.7,2117.6,6.5e-06]
[1741533125935,0.94459,2117.7,2117.6,6.5e-06]
[1741533135249,3.2078,2118.0,2117.6,6.5e-06]
[1741533135451,0.94457,2117.8,2117.6,3.2078065]
[1741533135868,0.94459,2117.7,2117.6,3.2078065]
[1741533136749,0.94457,2117.8,2117.6,7.2078065]
[1741533136950,0.94452,2117.9,2117.6,3.2078065]
[1741533137453,0.94448,2118.0,2117.6,4.1524065]
[1741533137750,0.94448,2118.0,2117.9,3.2078]
[1741533138049,5.5754065,2118.6,2117.9,3.2078]
[1741533138050,0.0070865,2118.6,2117.9,3.2078]
[1741533138254,0.94425,2118.5,2118.3,3.2078]
[1741533138452,0.94425,2118.5,2118.4,0.606]
[1741533139145,0.94427,2118.4,2118.3,3.2078]
[1741533139349,0.94436,2118.2,2118.1,0.606]
[1741533140457,0.94441,2118.1,2118.0,3.2078]
[1741533140855,0.94454,2117.8,2117.7,3.2078]
[1741533141058,0.94454,2117.8,2117.7,3.8138]
[1741533142151,0.94454,2117.8,2117.7,3.2078]
[1741533142656,2.8878,2117.9,2117.6,6.5e-06]
[1741533143660,0.94456,2117.8,2117.6,6.5e-06]
[1741533144154,2.245,2117.9,2117.6,6.5e-06]
[1741533144457,0.94455,2117.8,2117.6,6.5e-06]
[1741533145065,3.18952,2117.9,2117.6,6.5e-06]
[1741533145355,3.18953,2117.9,2117.6,6.5e-06]
[1741533145749,0.6397,2118.0,2117.6,6.5e-06]
[1741533146056,0.6537,2118.5,2117.9,0.94449]
[1741533146355,0.94429,2118.4,2118.0,5.35875]
[1741533146755,0.94432,2118.3,2118.1,40.8]
[1741533146954,0.94432,2118.3,2118.0,5.35875]
[1741533147255,2.2520865,2118.6,2118.0,8.4143]
[1741533147448,0.0070865,2118.6,2118.4,3.2078]
[1741533147647,0.9512665,2118.6,2118.5,0.5969]
[1741533150258,0.94423,2118.5,2118.4,3.2078]
[1741533150868,0.9512965,2118.6,2118.4,3.2078]
[1741533152464,0.0070865,2118.6,2118.4,3.2078]
[1741533152770,0.9512865,2118.6,2118.4,3.2078]
[1741533153360,0.0070865,2118.6,2118.5,0.94423]
[1741533153564,0.0070865,2118.6,2118.5,5.54693]
[1741533154453,0.0070865,2118.6,2118.5,4.6027]
[1741533154959,0.9512665,2118.6,2118.5,0.6027]
[1741533155568,0.0070865,2118.6,2118.5,0.6027]
[1741533156059,0.0070865,2118.6,2118.5,5.54693]
[1741533156865,0.9512665,2118.6,2118.5,0.6027]
[1741533157358,0.94423,2118.5,2118.4,3.2078]
[1741533158369,0.9512865,2118.6,2118.4,3.2078]
[1741533158865,0.94423,2118.5,2118.4,3.2078]
[1741533159066,0.0070865,2118.6,2118.4,3.2078]
[1741533159267,0.9512965,2118.6,2118.4,3.2078]
[1741533159460,0.0070865,2118.6,2118.5,0.94423]
[1741533160062,0.9512765,2118.6,2118.4,3.2078]
[1741533160254,0.9512865,2118.6,2118.4,4.15207]
[1741533160458,0.94423,2118.5,2118.4,3.2078]
[1741533160867,0.0070865,2118.6,2118.4,4.15204]
[1741533161067,0.0070865,2118.6,2118.4,3.2078]
[1741533161262,0.0070865,2118.6,2118.5,0.94423]
[1741533169569,0.94403,2119.0,2118.5,4.0]
[1741533169877,2.242,2119.6,2119.3,0.94385]
[1741533170076,0.94383,2119.4,2119.3,3.2078]
[1741533170673,0.6086,2119.6,2119.3,3.2078]
[1741533170871,0.94379,2119.5,2119.3,4.15164]
[1741533171575,0.6156865,2119.6,2119.3,3.2078]
[1741533172078,0.94378,2119.5,2119.3,4.15165]
[1741533172267,0.6156865,2119.6,2119.3,3.2078]
[1741533172467,1.5594565,2119.6,2119.4,0.94383]
[1741533172673,0.6156865,2119.6,2119.3,3.2078]
[1741533172873,1.5594665,2119.6,2119.3,4.15165]
[1741533173073,0.6156865,2119.6,2119.3,3.2078]
[1741533173272,1.5594365,2119.6,2119.4,0.94381]
[1741533173473,0.9438,2119.5,2119.3,4.15165]
[1741533174071,0.6156865,2119.6,2119.3,44.0078]
[1741533174270,0.94383,2119.4,2119.3,3.2078]
[1741533174466,0.6156865,2119.6,2119.3,3.2078]
[1741533174881,0.94383,2119.4,2119.3,3.2078]
[1741533175066,1.58481,2119.5,2119.3,3.2078]
[1741533175471,0.641,2119.5,2119.3,4.15167]
[1741533175777,0.641,2119.5,2119.3,4.15166]
[1741533175977,0.641,2119.5,2119.3,3.2078]
[1741533176276,1.5848,2119.5,2119.3,3.2078]
[1741533176775,0.94383,2119.4,2119.3,3.2078]
[1741533177679,1.58481,2119.5,2119.3,3.2078]
[1741533179476,0.641,2119.5,2119.3,3.2078]
[1741533179672,0.94383,2119.4,2119.3,3.2078]
[1741533179872,1.58481,2119.5,2119.3,3.2078]
[1741533180272,1.5594665,2119.6,2119.3,4.15165]
[1741533180570,0.94379,2119.5,2119.3,3.2078]
[1741533180770,0.94383,2119.4,2119.3,3.2078]
[1741533180979,0.6156865,2119.6,2119.3,4.15167]
[1741533180980,0.94381,2119.5,2119.3,4.15167]
[1741533181683,1.5594465,2119.6,2119.4,0.94383]
[1741533181883,1.5594465,2119.6,2119.3,3.2078]
[1741533182084,0.94378,2119.5,2119.3,4.15165]
[1741533182779,0.6156865,2119.6,2119.3,3.2078]
[1741533183081,0.6156865,2119.6,2119.3,4.15165]
[1741533183082,0.9438,2119.5,2119.3,4.15165]
[1741533185375,0.94383,2119.4,2119.3,3.2078]
[1741533187171,0.6156865,2119.6,2119.3,3.2078]
[1741533187376,0.6156865,2119.6,2119.4,0.94379]
[1741533187579,0.6156865,2119.6,2119.5,0.94378]
[1741533187580,0.0070865,2119.6,2119.5,0.94378]
[1741533187886,1.2093,2120.0,2119.9,0.94361]
[1741533188073,1.2093,2120.0,2119.8,4.15142]
[1741533188279,2.15287,2120.0,2119.8,4.15142]
[1741533188576,2.15287,2120.0,2119.8,3.2078]
[1741533188777,0.94361,2119.9,2119.8,3.2078]
[1741533188978,1.56571,2119.9,2119.8,3.2078]
[1741533189287,0.6221,2119.9,2119.8,3.2078]
[1741533189477,1.56571,2119.9,2119.8,3.2078]
[1741533190186,0.94361,2119.9,2119.8,3.2078]
[1741533190381,1.2093,2120.0,2119.8,3.2078]
[1741533190577,1.2093,2120.0,2119.9,0.94361]
[1741533190984,1.2093,2120.0,2119.8,4.15143]
[1741533191174,1.2093,2120.0,2119.8,3.2078]
[1741533191379,1.2093,2120.0,2119.8,4.15141]
[1741533191978,0.6015,2120.0,2119.8,3.2078]
[1741533192179,0.0070865,2120.1,2120.0,0.94356]
[1741533192582,0.0070865,2120.1,2120.0,1.32543745]
[1741533192789,0.0070865,2120.1,2120.0,42.12543745]
[1741533192979,0.0070865,2120.1,2120.0,41.74356]
[1741533193180,0.9506065,2120.1,2120.0,40.8]
[1741533193374,0.9506065,2120.1,2119.9,3.18159]
[1741533193786,0.0070865,2120.1,2119.9,43.98159]
[1741533193989,0.0070865,2120.1,2120.0,0.94356]
[1741533194182,0.0070865,2120.1,2120.0,1.57716]
[1741533194585,0.0070865,2120.1,2119.9,43.98158]
[1741533194879,0.0070865,2120.1,2119.9,43.038]
[1741533195084,0.94356,2120.0,2119.9,2.238]
[1741533196379,0.0070865,2120.1,2119.8,3.2078]
[1741533196587,1.54181,2119.9,2119.8,3.2078]
[1741533197585,2.15021,2119.9,2119.8,3.2078]
[1741533198183,1.2066,2119.9,2119.8,3.2078]
[1741533198583,0.0070865,2120.1,2119.8,3.2078]
[1741533198888,0.0070865,2120.1,2119.8,4.15141]
[1741533199082,0.0070865,2120.1,2119.8,3.2078]
[1741533199282,0.0070865,2120.1,2119.9,1.2548]
[1741533199590,0.0070865,2120.1,2119.9,2.19839]
[1741533199883,0.0070865,2120.1,2120.0,0.94356]
[1741533200089,0.0070865,2120.1,2120.0,1.59126]
[1741533201284,0.6409,2120.5,2120.0,4.6477]
[1741533201586,1.58424,2120.5,2120.4,3.2078]
[1741533201793,0.6409,2120.5,2120.4,3.2078]
[1741533201989,2.237,2121.0,2120.4,3.2078]
[1741533201990,3.2078,2121.2,2120.4,3.2078]
[1741533202188,0.94321,2120.8,2120.5,2.84052]
[1741533202387,0.94325,2120.7,2120.5,2.84052]
[1741533202588,0.94325,2120.7,2120.5,1.8972]
[1741533203096,0.94323,2120.8,2120.5,2.84052]
[1741533203399,0.94329,2120.6,2120.5,0.6372]
[1741533203793,0.94327,2120.7,2120.5,0.6372]
[1741533204196,1.2968,2120.8,2120.5,0.6372]
[1741533204995,0.94329,2120.6,2120.5,0.6372]
[1741533205597,0.94329,2120.6,2120.4,7.82705173]
[1741533205799,0.94329,2120.6,2120.4,8.77043173]
[1741533206194,1.2968,2120.8,2120.4,8.77043173]
[1741533206694,0.9433,2120.6,2120.4,8.77043173]
[1741533206897,0.9433,2120.6,2120.4,5.78543173]
[1741533207201,0.94328,2120.7,2120.4,5.78543173]
[1741533207402,1.2968,2120.8,2120.4,4.84205173]
[1741533207600,0.94328,2120.7,2120.5,0.94334]
[1741533207795,0.6528,2120.8,2120.6,0.94327]
[1741533207995,1.59602,2120.8,2120.7,3.2078]
[1741533208198,0.6528,2120.8,2120.7,4.15105]
[1741533208502,2.236,2121.8,2120.7,5.4438]
[1741533208694,1.55053,2121.2,2121.1,3.2078]
[1741533212006,0.94303,2121.2,2121.1,3.2078]
[1741533212211,21.95829587,2122.9,2121.1,3.2078]
[1741533212212,3.2078,2121.9,2121.1,3.2078]
[1741533212420,0.6349,2121.4,2121.1,0.94303]
[1741533212718,0.6349,2121.4,2121.3,3.2078]
[1741533212719,1.57784,2121.4,2121.3,3.2078]
[1741533212912,0.6349,2121.4,2121.3,3.2078]
[1741533214117,3.2078,2121.9,2121.3,3.2078]
[1741533214518,0.94284,2121.7,2121.6,3.2078]
[1741533218723,0.94281,2121.7,2121.6,3.2078]
[1741533219718,0.6361,2121.9,2121.6,3.2078]
[1741533220020,0.94281,2121.7,2121.6,3.2078]
[1741533220927,0.94279,2121.8,2121.6,3.2078]
[1741533221119,0.6361,2121.9,2121.6,3.2078]
[1741533221420,0.94281,2121.7,2121.6,3.2078]
[1741533221614,0.6361,2121.9,2121.6,3.2078]
[1741533222019,0.9428,2121.8,2121.6,3.2078]
[1741533222218,0.6361,2121.9,2121.6,3.2078]
[1741533222426,0.94281,2121.7,2121.6,3.2078]
[1741533224822,3.8439,2121.9,2121.4,0.00706964]
[1741533225128,0.94289,2121.5,2121.4,0.00706964]
[1741533232329,0.9428,2121.8,2121.4,0.00706964]
[1741533232530,0.94285,2121.6,2121.4,1.93936964]
[1741533232733,1.2416,2121.8,2121.4,1.93936964]
[1741533233035,0.94284,2121.7,2121.4,1.93936964]
[1741533233232,1.2416,2121.8,2121.4,1.93936964]
[1741533233831,0.94283,2121.7,2121.4,1.93936964]
[1741533234042,0.94288,2121.6,2121.4,1.93936964]
[1741533235634,0.94289,2121.5,2121.4,1.93936964]
[1741533236027,0.94289,2121.5,2121.4,0.00706964]
[1741533240531,0.94282,2121.7,2121.4,0.00706964]
[1741533240732,0.94287,2121.6,2121.4,1.23826964]
[1741533241630,1.2416,2121.8,2121.4,1.23826964]
[1741533242142,0.94287,2121.6,2121.4,1.23826964]
[1741533242443,0.94284,2121.7,2121.4,1.23826964]
[1741533242635,1.58376,2121.8,2121.5,0.94289]
[1741533242839,0.94281,2121.7,2121.6,3.2078]
[1741533243843,1.58379,2121.8,2121.6,3.2078]
[1741533244038,0.94281,2121.7,2121.6,3.2078]
[1741533245242,0.641,2121.8,2121.6,3.2078]
[1741533245443,0.94281,2121.7,2121.6,3.2078]
[1741533246446,1.5838,2121.8,2121.6,3.2078]
[1741533246741,0.94281,2121.7,2121.6,3.2078]
[1741533248034,0.94284,2121.7,2121.4,1.23826964]
[1741533248432,0.6361,2121.9,2121.6,3.2078]
[1741533248433,0.94279,2121.8,2121.6,3.2078]
[1741533248635,0.94281,2121.7,2121.6,3.2078]
[1741533248838,0.94277,2121.8,2121.6,3.2078]
[1741533249641,0.94281,2121.7,2121.6,3.2078]
[1741533252750,0.6361,2121.9,2121.6,3.2078]
[1741533252949,0.94281,2121.7,2121.6,3.2078]
[1741533253251,0.6361,2121.9,2121.6,3.2078]
[1741533253454,0.94281,2121.7,2121.6,3.2078]
[1741533254851,0.6361,2121.9,2121.6,3.2078]
[1741533255049,0.94281,2121.7,2121.6,3.2078]
[1741533257646,0.6361,2121.9,2121.6,3.2078]
[1741533257952,0.6361,2121.9,2121.6,4.15063]
[1741533258141,1.57883,2121.9,2121.7,0.5973]
[1741533259046,1.57883,2121.9,2121.7,1.2431]
[1741533259242,1.2628,2122.1,2121.8,0.623]
[1741533259456,1.9037,2122.1,2121.8,0.623]
[1741533259659,0.94271,2122.0,2121.8,0.623]
[1741533260148,2.84636,2122.1,2121.8,0.623]
[1741533260448,0.94259,2122.2,2121.9,3.2078]
[1741533260649,0.94259,2122.2,2121.9,4.1505]
[1741533261250,0.94259,2122.2,2121.9,3.2078]
[1741533261950,1.2502,2122.3,2121.9,3.2078]
[1741533262142,0.94262,2122.2,2121.9,3.2078]
[1741533262447,0.94267,2122.0,2121.9,3.2078]
[1741533266152,0.94264,2122.1,2121.9,3.2078]
[1741533267553,0.94267,2122.0,2121.9,3.2078]
[1741533269256,0.94265,2122.1,2121.9,3.2078]
[1741533269655,1.2502,2122.3,2121.9,3.2078]
[1741533269960,1.2502,2122.3,2121.7,2.23]
[1741533269961,2.19274,2122.3,2122.2,3.2078]
[1741533271962,0.94267,2122.1,2121.9,3.2078]
[1741533272357,1.2502,2122.3,2121.9,3.2078]
[1741533272662,0.94266,2122.1,2121.9,3.2078]
[1741533272864,0.94267,2122.0,2121.9,3.2078]
[1741533273664,0.94266,2122.1,2121.9,3.2078]
[1741533275061,0.94267,2122.0,2121.9,3.2078]
[1741533276456,0.94264,2122.1,2121.9,3.2078]
[1741533276662,0.94267,2122.0,2121.9,3.2078]
[1741533279067,1.2502,2122.3,2121.9,3.2078]
[1741533279364,0.94264,2122.1,2121.9,3.2078]
[1741533279766,0.94267,2122.0,2121.9,3.2078]
[1741533279968,2.18707,2122.0,2121.9,3.2078]
[1741533281970,0.6464,2122.3,2121.9,3.2078]
[1741533282174,0.6464,2122.3,2122.0,0.6435]
[1741533282371,0.639,2122.2,2121.9,3.2078]
[1741533282571,0.6231,2122.1,2121.9,3.2078]
[1741533282874,0.94267,2122.0,2121.9,3.2078]
[1741533284170,1.56574,2122.1,2121.9,3.2078]
[1741533284573,0.94266,2122.1,2121.9,3.2078]
[1741533285075,1.5816,2122.2,2122.0,0.6311]
[1741533285267,0.639,2122.2,2122.0,1.849]
[1741533285773,1.58161,2122.2,2122.0,1.849]
[1741533286668,0.639,2122.2,2122.0,1.849]
[1741533286875,1.58163,2122.2,2122.0,1.849]
[1741533287076,0.94263,2122.1,2122.0,1.849]
[1741533287376,0.94263,2122.1,2122.0,1.2337]
[1741533287776,0.94263,2122.1,2122.0,0.6311]
[1741533288878,0.639,2122.2,2122.0,0.6311]
[1741533289179,1.5816,2122.2,2122.0,0.6311]
[1741533289378,0.639,2122.2,2122.0,0.6311]
[1741533289970,1.58159,2122.2,2122.0,0.6311]
[1741533290669,0.639,2122.2,2122.0,0.6311]
[1741533290869,1.5816,2122.2,2122.0,0.6311]
[1741533291678,0.94263,2122.1,2122.0,0.6311]
[1741533293875,0.94258,2122.2,2122.0,1.57377]
[1741533294079,0.94263,2122.1,2122.0,0.6311]
[1741533294382,1.2775,2122.3,2122.0,0.6311]
[1741533294582,0.94263,2122.1,2122.0,0.6311]
[1741533295688,2.35586,2122.8,2122.0,0.6311]
[1741533295878,0.6468,2122.5,2122.2,3.2078]
[1741533296081,0.94257,2122.3,2122.2,3.8389]
[1741533296274,0.6468,2122.5,2122.4,0.94249]
[1741533296473,0.9425,2122.4,2122.2,3.8389]
[1741533296672,0.6468,2122.5,2122.2,4.78145]
[1741533296673,1.58928,2122.5,2122.2,4.78145]
[1741533296986,0.6468,2122.5,2122.3,0.94251]
[1741533297278,0.94249,2122.4,2122.2,4.78146]
[1741533297475,1.58929,2122.5,2122.2,4.78146]
[1741533297675,1.58929,2122.5,2122.2,3.8389]
[1741533297977,0.6468,2122.5,2122.2,3.8389]
[1741533298177,1.1967,2122.8,2122.7,0.94236]
[1741533298371,1.1967,2122.8,2122.7,3.2078]
[1741533298681,2.13902,2122.8,2122.7,3.2078]
[1741533299880,1.1967,2122.8,2122.5,0.00706964]
[1741533300081,0.94241,2122.6,2122.5,0.00706964]
[1741533300383,0.94245,2122.5,2122.4,3.2078]
[1741533300583,1.58145,2122.5,2122.4,3.2078]
[1741533301385,0.639,2122.5,2122.1,3.2078]
[1741533301580,0.94258,2122.2,2122.1,3.2078]
[1741533301880,3.2078,2122.2,2122.1,0.00706964]
[1741533302083,4.15038,2122.2,2122.1,0.00706964]
[1741533302275,4.78938,2122.2,2122.1,0.00706964]
[1741533303373,10.20333,2122.2,2121.4,0.5979]
[1741533303578,0.94283,2121.7,2121.6,3.2078]
[1741533303778,6.20333,2122.2,2121.6,3.2078]
[1741533303779,6.0708,2122.2,2121.6,3.2078]
[1741533304374,0.9427,2122.0,2121.6,4.15063]
[1741533304581,0.9427,2122.0,2121.7,0.00706964]
[1741533305382,0.5935,2122.1,2121.7,0.00706964]
[1741533305579,0.94276,2121.8,2121.7,0.00706964]
[1741533305780,0.6053,2122.0,2121.7,0.00706964]
[1741533305979,0.94276,2121.8,2121.7,0.00706964]
[1741533307986,0.5964,2121.9,2121.7,0.00706964]
[1741533308284,0.94276,2121.8,2121.7,0.00706964]
[1741533310083,0.5964,2121.9,2121.7,0.00706964]
[1741533310385,0.94276,2121.8,2121.7,0.00706964]
[1741533313993,0.5964,2121.9,2121.7,0.94985964]
[1741533314182,0.5964,2121.9,2121.8,0.6033]
[1741533314388,0.5964,2121.9,2121.8,1.2231]
[1741533314389,1.53912,2121.9,2121.8,1.2231]
[1741533315189,0.5964,2121.9,2121.8,1.2231]
[1741533315492,1.53912,2121.9,2121.8,0.6033]
[1741533315787,0.94276,2121.8,2121.7,0.00706964]
[1741533316094,0.5964,2121.9,2121.7,0.00706964]
[1741533316297,1.53915,2121.9,2121.7,0.00706964]
[1741533316494,0.94276,2121.8,2121.7,0.00706964]
[1741533316795,1.53915,2121.9,2121.7,0.00706964]
[1741533317294,0.94276,2121.8,2121.7,0.00706964]
[1741533325898,3.2078,2122.2,2121.7,3.21486964]
[1741533326196,1.9139,2122.4,2121.7,3.21486964]
[1741533326395,0.94257,2122.3,2122.0,3.2078]
[1741533326595,0.94258,2122.2,2122.1,1.2771]
[1741533326799,0.94263,2122.1,2122.0,3.2078]
[1741533328898,0.94276,2121.8,2121.7,2.99206964]
[1741533330292,0.94276,2121.8,2121.7,0.00706964]
[1741533330599,0.94276,2121.8,2121.3,3.8303]
[1741533330600,0.94294,2121.4,2121.3,3.8303]
[1741533330899,0.94308,2121.1,2120.9,3.8176]
[1741533331097,0.94306,2121.2,2120.9,3.8176]
[1741533331292,0.9431,2121.1,2120.9,3.8176]
[1741533331494,0.00706964,2121.2,2120.9,3.2078]
[1741533331694,0.94312,2121.0,2120.9,3.2078]
[1741533334206,0.00706964,2121.2,2120.8,0.00706964]
[1741533334207,0.94316,2120.9,2120.8,0.00706964]
[1741533335705,3.16416,2120.9,2120.8,0.00706964]
[1741533336901,6.221,2120.9,2120.0,24.6598]
[1741533337109,0.94352,2120.1,2120.0,22.4388]
[1741533337705,0.94352,2120.1,2120.0,3.2078]
[1741533338402,2.221,2120.5,2120.0,3.2078]
[1741533338804,0.94351,2120.2,2120.0,3.2078]
[1741533339701,4.0648,2120.8,2120.4,0.94334]
[1741533339902,2.78704,2120.8,2120.5,0.6113]
[1741533340102,2.18264,2120.8,2120.5,0.6113]
[1741533340303,0.94328,2120.7,2120.5,1.224]
[1741533340707,0.94329,2120.6,2120.5,1.224]
[1741533340910,1.2394,2120.8,2120.5,1.224]
[1741533341101,0.94329,2120.6,2120.5,1.224]
[1741533341600,0.94322,2120.8,2120.5,2.16731]
[1741533341807,0.94326,2120.7,2120.5,1.224]
[1741533342010,0.94326,2120.7,2120.6,40.8]
[1741533342508,6.7255,2121.1,2120.6,40.8]
[1741533342709,0.94322,2120.8,2120.7,3.2078]
[1741533343011,6.7255,2121.1,2120.7,3.2078]
[1741533343208,0.94321,2120.8,2120.7,3.2078]
[1741533345602,0.94312,2121.0,2120.7,3.2078]
[1741533346112,6.7255,2121.1,2120.7,3.2078]
[1741533346313,0.94312,2121.0,2120.7,3.2078]
[1741533346509,6.7255,2121.1,2120.7,3.2078]
[1741533346812,0.94312,2121.0,2120.7,4.15103]
[1741533347707,4.5045,2121.1,2120.7,44.95103]
[1741533347907,0.94317,2120.9,2120.7,44.95103]
[1741533348110,0.94317,2120.9,2120.7,44.0078]
[1741533348804,1.2967,2121.1,2120.7,44.0078]
[1741533349008,1.2967,2121.1,2120.5,1.224]
[1741533349009,0.94321,2120.8,2120.5,1.224]
[1741533349215,0.94329,2120.6,2120.5,0.6113]
[1741533349614,0.94338,2120.4,2120.3,3.2078]
[1741533350919,0.94351,2120.2,2120.0,44.6482]
[1741533351314,1.2004,2120.5,2120.0,44.6482]
[1741533351315,3.4214,2120.5,2120.0,44.6482]
[1741533351521,0.94342,2120.4,2120.0,44.6482]
[1741533351720,0.94344,2120.3,2120.0,44.6482]
[1741533353318,0.94346,2120.3,2120.0,44.6482]
[1741533354517,3.4214,2120.5,2120.0,44.6482]
[1741533354518,0.9434,2120.4,2120.1,0.94352]
[1741533354715,2.14378,2120.5,2120.1,0.94352]